fUST/lending_fUST_20250810
["ID","MTS","AMOUNT","RATE_DAILY","PERIOD"]
[378173290,1754763042750,-460.0,0.00021541,2]
[378173291,1754763042760,-460.0,0.00021541,2]
[378173292,1754763042769,-460.0,0.00021541,2]
[378173293,1754763042779,-510.72650732,0.00021541,2]
[378173294,1754763042788,-460.0,0.00021541,2]
[378173295,1754763042798,-460.0,0.00021541,2]
[378173296,1754763042807,-460.0,0.00021541,2]
[378173297,1754763042817,-460.0,0.00021541,2]
[378173299,1754763042826,-460.0,0.00021541,2]
[378173300,1754763042836,-460.0,0.00021541,2]
[378173301,1754763042846,-460.0,0.00021541,2]
[378173302,1754763042855,-460.0,0.00021541,2]
[378173303,1754763042864,-460.0,0.00021541,2]
[378173304,1754763042874,-507.40713163,0.00021541,2]
[378173305,1754763042885,-239.80394118,0.00021541,2]
[378173306,1754763042895,-460.0,0.00021541,2]
[378173307,1754763042904,-460.0,0.00021541,2]
[378173308,1754763042914,-460.0,0.00021541,2]
[378173309,1754763042923,-460.0,0.00021541,2]
[378173310,1754763042933,-460.0,0.00021541,2]
[378173311,1754763042942,-460.0,0.00021541,2]
[378173312,1754763042952,-460.0,0.00021541,2]
[378173313,1754763042961,-460.0,0.00021541,2]
[378173314,1754763042971,-460.0,0.00021541,2]
[378173315,1754763042981,-460.0,0.00021541,2]
[378173316,1754763042991,-461.59813505,0.00021541,2]
[378173317,1754763043000,-460.0,0.00021541,2]
[378173318,1754763043010,-460.0,0.00021541,2]
[378173319,1754763043019,-460.0,0.00021541,2]
[378173320,1754763043029,-460.0,0.00021541,2]
[378173322,1754763043039,-460.0,0.00021541,2]
[378173324,1754763043048,-460.0,0.00021541,2]
[378173325,1754763043058,-460.0,0.00021541,2]
[378173326,1754763043067,-460.0,0.00021541,2]
[378173327,1754763043077,-460.0,0.00021541,2]
[378173328,1754763043087,-1000.0,0.00021541,2]
[378173330,1754763043096,-460.0,0.00021541,2]
[378173332,1754763043106,-460.0,0.00021541,2]
[378173333,1754763043115,-460.0,0.00021541,2]
[378173334,1754763043125,-460.0,0.00021541,2]
[378173335,1754763043136,-463.33419112,0.00021541,2]
[378173336,1754763043145,-641.9,0.00021541,2]
[378173337,1754763043154,-641.9,0.00021541,2]
[378173338,1754763043164,-460.0,0.00021541,2]
[378173339,1754763043174,-461.83658983,0.00021541,2]
[378173340,1754763043183,-460.0,0.00021541,2]
[378173341,1754763043193,-460.0,0.00021541,2]
[378173342,1754763043202,-460.0,0.00021541,2]
[378173343,1754763043211,-460.0,0.00021541,2]
[378173344,1754763043221,-460.0,0.00021541,2]
[378173345,1754763043231,-460.0,0.00021541,2]
[378173346,1754763043241,-558.23889406,0.00021541,2]
[378173347,1754763043251,-460.0,0.00021541,2]
[378173348,1754763043262,-460.0,0.00021541,2]
[378173349,1754763043273,-460.0,0.00021541,2]
[378173350,1754763043283,-294.47530546,0.00021541,2]
[378173351,1754763043297,-460.0,0.00021541,2]
[378173352,1754763043307,-460.0,0.00021541,2]
[378173353,1754763043316,-460.0,0.00021541,2]
[378173354,1754763043326,-460.0,0.00021541,2]
[378173355,1754763043335,-460.0,0.00021541,2]
[378173356,1754763043345,-460.0,0.00021541,2]
[378173357,1754763043355,-479.26074784,0.00021541,2]
[378173358,1754763043365,-460.0,0.00021541,2]
[378173359,1754763043375,-460.0,0.00021541,2]
[378173360,1754763043385,-460.0,0.00021541,2]
[378173361,1754763043395,-460.0,0.00021541,2]
[378173362,1754763043404,-464.16461504,0.00021541,2]
[378173363,1754763043414,-460.0,0.00021541,2]
[378173364,1754763043423,-460.0,0.00021541,2]
[378173365,1754763043433,-580.63717668,0.00021541,2]
[378173366,1754763043442,-460.0,0.00021541,2]
[378173367,1754763043451,-460.0,0.00021541,2]
[378173368,1754763043461,-460.0,0.00021541,2]
[378173369,1754763043471,-460.0,0.00021541,2]
[378173370,1754763043480,-460.0,0.00021541,2]
[378173371,1754763043490,-460.0,0.00021541,2]
[378173372,1754763043499,-460.0,0.00021541,2]
[378173373,1754763043511,-460.0,0.00021541,2]
[378173374,1754763043520,-460.0,0.00021541,2]
[378173375,1754763043530,-538.87057767,0.00021541,2]
[378173376,1754763043539,-460.0,0.00021541,2]
[378173377,1754763043548,-460.0,0.00021541,2]
[378173378,1754763043558,-354.95418606,0.00021541,2]
[378173379,1754763043567,-460.0,0.00021541,2]
[378173380,1754763043576,-518.61121218,0.00021541,2]
[378173381,1754763043586,-460.0,0.00021541,2]
[378173382,1754763043595,-460.0,0.00021541,2]
[378173383,1754763043605,-460.0,0.00021541,2]
[378173384,1754763043614,-192.90908007,0.00021541,2]
[378173385,1754763043624,-460.0,0.00021541,2]
[378173386,1754763043634,-460.0,0.00021541,2]
[378173387,1754763043643,-460.0,0.00021541,2]
[378173388,1754763043653,-460.0,0.00021541,2]
[378173389,1754763043662,-460.0,0.00021541,2]
[378173390,1754763043672,-464.28959037,0.00021541,2]
[378173391,1754763043682,-460.0,0.00021541,2]
[378173392,1754763043691,-460.0,0.00021541,2]
[378173393,1754763043700,-460.0,0.00021541,2]
[378173394,1754763043709,-462.22338247,0.00021541,2]
[378173395,1754763043718,-460.0,0.00021541,2]
[378173396,1754763043728,-460.0,0.00021541,2]
[378173397,1754763043738,-460.0,0.00021541,2]
[378173398,1754763043748,-460.0,0.00021541,2]
[378173399,1754763043758,-460.0,0.00021541,2]
[378173400,1754763043769,-460.0,0.00021541,2]
[378173401,1754763043779,-500.0,0.00021541,2]
[378173402,1754763043789,-500.0,0.00021541,2]
[378173403,1754763043799,-460.0,0.00021541,2]
[378173404,1754763043810,-460.54921167,0.00021541,2]
[378173405,1754763043822,-460.0,0.00021541,2]
[378173406,1754763043832,-460.0,0.00021541,2]
[378173407,1754763043841,-460.0,0.00021541,2]
[378173408,1754763043851,-460.0,0.00021541,2]
[378173409,1754763043869,-460.0,0.00021541,2]
[378173410,1754763043881,-460.0,0.00021541,2]
[378173411,1754763043891,-460.0,0.00021541,2]
[378173412,1754763043902,-460.0,0.00021541,2]
[378173413,1754763043911,-460.0,0.00021541,2]
[378173414,1754763043921,-1000.0,0.00021541,2]
[378173415,1754763043931,-460.0,0.00021541,2]
[378173416,1754763043940,-460.0,0.00021541,2]
[378173417,1754763043950,-460.0,0.00021541,2]
[378173418,1754763043960,-460.0,0.00021541,2]
[378173419,1754763043969,-460.0,0.00021541,2]
[378173420,1754763043999,-460.0,0.00021541,2]
[378173421,1754763044009,-460.0,0.00021541,2]
[378173422,1754763044019,-460.0,0.00021541,2]
[378173423,1754763044030,-460.0,0.00021541,2]
[378173424,1754763044040,-460.0,0.00021541,2]
[378173425,1754763044050,-533.79742519,0.00021541,2]
[378173426,1754763044060,-460.0,0.00021541,2]
[378173427,1754763044069,-460.0,0.00021541,2]
[378173428,1754763044079,-460.0,0.00021541,2]
[378173429,1754763044089,-460.0,0.00021541,2]
[378173430,1754763044099,-460.0,0.00021541,2]
[378173431,1754763044109,-460.0,0.00021541,2]
[378173432,1754763044119,-460.0,0.00021541,2]
[378173433,1754763044129,-460.0,0.00021541,2]
[378173434,1754763044140,-460.0,0.00021541,2]
[378173435,1754763044149,-460.0,0.00021541,2]
[378173436,1754763044159,-460.0,0.00021541,2]
[378173437,1754763044169,-460.0,0.00021541,2]
[378173438,1754763044179,-460.0,0.00021541,2]
[378173439,1754763044188,-460.0,0.00021541,2]
[378173440,1754763044198,-356.1386746,0.00021541,2]
[378173441,1754763044208,-460.0,0.00021541,2]
[378173442,1754763044218,-460.0,0.00021541,2]
[378173443,1754763044227,-460.0,0.00021541,2]
[378173444,1754763044236,-460.0,0.00021541,2]
[378173445,1754763044246,-460.0,0.00021541,2]
[378173446,1754763044256,-460.0,0.00021541,2]
[378173447,1754763044266,-460.0,0.00021541,2]
[378173448,1754763044276,-460.0,0.00021541,2]
[378173449,1754763044286,-460.0,0.00021541,2]
[378173450,1754763044299,-460.0,0.00021541,2]
[378173451,1754763044309,-460.0,0.00021541,2]
[378173452,1754763044318,-460.0,0.00021541,2]
[378173453,1754763044327,-460.0,0.00021541,2]
[378173454,1754763044339,-460.0,0.00021541,2]
[378173455,1754763044348,-460.0,0.00021541,2]
[378173456,1754763044358,-460.0,0.00021541,2]
[378173457,1754763044369,-380.68217083,0.00021541,2]
[378173458,1754763044378,-460.0,0.00021541,2]
[378173459,1754763044389,-460.0,0.00021541,2]
[378173460,1754763044398,-460.0,0.00021541,2]
[378173461,1754763044408,-460.0,0.00021541,2]
[378173462,1754763044418,-460.0,0.00021541,2]
[378173463,1754763044428,-460.0,0.00021541,2]
[378173464,1754763044438,-460.0,0.00021541,2]
[378173465,1754763044447,-500.0,0.00021541,2]
[378173466,1754763044458,-500.0,0.00021541,2]
[378173467,1754763044469,-500.00000001,0.00021541,2]
[378173468,1754763044478,-460.0,0.00021541,2]
[378173469,1754763044488,-460.0,0.00021541,2]
[378173470,1754763044501,-460.0,0.00021541,2]
[378173471,1754763044512,-460.0,0.00021541,2]
[378173472,1754763044522,-460.0,0.00021541,2]
[378173473,1754763044533,-460.0,0.00021541,2]
[378173474,1754763044543,-460.0,0.00021541,2]
[378173475,1754763044553,-460.0,0.00021541,2]
[378173476,1754763044563,-1186.24,0.00021541,2]
[378173477,1754763044573,-1186.24,0.00021541,2]
[378173478,1754763044583,-460.0,0.00021541,2]
[378173479,1754763044593,-460.0,0.00021541,2]
[378173480,1754763044603,-460.0,0.00021541,2]
[378173481,1754763044613,-460.0,0.00021541,2]
[378173482,1754763044623,-479.16,0.00021541,2]
[378173483,1754763044633,-460.0,0.00021541,2]
[378173484,1754763044643,-460.0,0.00021541,2]
[378173485,1754763044653,-465.75402239,0.00021541,2]
[378173486,1754763044663,-460.0,0.00021541,2]
[378173487,1754763044673,-663.54,0.00021541,2]
[378173488,1754763044683,-460.0,0.00021541,2]
[378173489,1754763044693,-460.0,0.00021541,2]
[378173490,1754763044703,-460.0,0.00021541,2]
[378173491,1754763044712,-1640.42,0.00021541,2]
[378173492,1754763044722,-1640.42,0.00021541,2]
[378173493,1754763044732,-500.0,0.00021541,2]
[378173494,1754763044741,-500.0,0.00021541,2]
[378173495,1754763044751,-460.0,0.00021541,2]
[378173496,1754763044761,-460.0,0.00021541,2]
[378173497,1754763044771,-460.0,0.00021541,2]
[378173498,1754763044780,-460.0,0.00021541,2]
[378173499,1754763044790,-460.0,0.00021541,2]
[378173500,1754763044801,-984.81,0.00021541,2]
[378173501,1754763044811,-462.65520096,0.00021541,2]
[378173502,1754763044820,-460.0,0.00021541,2]
[378173503,1754763044830,-160.0,0.00021542,2]
[378173504,1754763044840,-500.0,0.00021542,2]
[378173505,1754763044849,-460.0,0.00021542,2]
[378173506,1754763044859,-460.0,0.00021542,2]
[378173507,1754763044869,-486.70015507,0.00021542,2]
[378173508,1754763044880,-460.0,0.00021542,2]
[378173509,1754763044890,-460.0,0.00021542,2]
[378173510,1754763044899,-460.0,0.00021542,2]
[378173511,1754763045047,-460.0,0.00021542,2]
[378173512,1754763045061,-460.0,0.00021542,2]
[378173513,1754763045071,-460.0,0.00021542,2]
[378173514,1754763045080,-641.9,0.00021542,2]
[378173515,1754763045092,-641.9,0.00021542,2]
[378173516,1754763045101,-641.9,0.00021542,2]
[378173517,1754763045111,-641.9,0.00021542,2]
[378173518,1754763045121,-641.9,0.00021542,2]
[378173519,1754763045130,-225.96712271,0.00021542,2]
[378173520,1754763045140,-500.0,0.00021542,2]
[378173521,1754763045150,-500.0,0.00021542,2]
[378173522,1754763045159,-500.0,0.00021542,2]
[378173523,1754763045169,-500.0,0.00021542,2]
[378173524,1754763045178,-500.0,0.00021542,2]
[378173525,1754763045188,-480.16,0.00021542,2]
[378173526,1754763045198,-460.0,0.00021542,2]
[378173527,1754763045207,-237.1372458,0.00021542,2]
[378173528,1754763045216,-460.0,0.00021542,2]
[378173529,1754763045226,-460.0,0.00021542,2]
[378173530,1754763045235,-479.16,0.00021542,2]
[378173531,1754763045245,-460.0,0.00021542,2]
[378173532,1754763045254,-460.0,0.00021542,2]
[378173533,1754763045263,-460.0,0.00021542,2]
[378173534,1754763045273,-460.0,0.00021542,2]
[378173535,1754763045283,-460.0,0.00021542,2]
[378173536,1754763045292,-460.0,0.00021542,2]
[378173537,1754763045303,-460.0,0.00021542,2]
[378173538,1754763045315,-460.0,0.00021542,2]
[378173539,1754763045325,-460.0,0.00021542,2]
[378173540,1754763045335,-460.0,0.00021542,2]
[378173541,1754763045345,-460.0,0.00021542,2]
[378173542,1754763045355,-460.0,0.00021542,2]
[378173543,1754763045365,-460.0,0.00021542,2]
[378173544,1754763045376,-460.0,0.00021542,2]
[378173545,1754763045389,-460.0,0.00021542,2]
[378173546,1754763045399,-460.0,0.00021542,2]
[378173547,1754763045408,-1186.24,0.00021542,2]
[378173548,1754763045418,-1186.24,0.00021542,2]
[378173549,1754763045428,-1186.24,0.00021542,2]
[378173550,1754763045437,-1186.24,0.00021542,2]
[378173551,1754763045447,-460.0,0.00021542,2]
[378173552,1754763045456,-460.0,0.00021542,2]
[378173553,1754763045466,-460.0,0.00021542,2]
[378173554,1754763045477,-460.0,0.00021542,2]
[378173555,1754763045487,-460.0,0.00021542,2]
[378173556,1754763045496,-641.9,0.00021544,2]
[378173558,1754763045506,-500.0,0.00021544,2]
[378173560,1754763045516,-500.0,0.00021544,2]
[378173561,1754763045526,-1186.24,0.00021544,2]
[378173562,1754763045535,-1640.42,0.00021544,2]
[378173563,1754763045545,-500.0,0.00021544,2]
[378173565,1754763045555,-500.0,0.00021654,2]
[378173566,1754763045564,-1186.24,0.00021654,2]
[378173567,1754763045573,-1640.42,0.00021654,2]
[378173568,1754763045582,-500.0,0.00021654,2]
[378173569,1754763045592,-12708.37199802,0.00021655,2]
[378173570,1754763045601,-200.0,0.00021655,10]
[378173571,1754763045611,-200.0,0.00021655,10]
[378173572,1754763045620,-200.0,0.00021655,10]
[378173573,1754763045630,-200.0,0.00021655,10]
[378173574,1754763045639,-200.0,0.00021655,10]
[378173575,1754763045648,-200.0,0.00021655,10]
[378173576,1754763045658,-200.0,0.00021655,10]
[378173577,1754763045667,-200.0,0.00021655,10]
[378173578,1754763045676,-200.0,0.00021655,10]
[378173579,1754763045685,-200.0,0.00021655,10]
[378173580,1754763045694,-200.0,0.00021655,10]
[378173581,1754763045704,-200.0,0.00021655,10]
[378173582,1754763045713,-200.0,0.00021655,10]
[378173583,1754763045722,-200.0,0.00021655,10]
[378173584,1754763045732,-200.0,0.00021655,10]
[378173586,1754763045741,-200.0,0.00021655,10]
[378173587,1754763045751,-230.602158,0.00021655,10]
[378173588,1754763045761,-500.0,0.00021713,2]
[378173589,1754763045770,-500.0,0.00021713,2]
[378173590,1754763045779,-500.0,0.00021713,2]
[378173591,1754763045789,-640.54013102,0.00021713,2]
[378173592,1754763045799,-1640.42,0.00021713,2]
[378173593,1754763045808,-1640.42,0.00021713,2]
[378173594,1754763045818,-1640.42,0.00021713,2]
[378173595,1754763045832,-1640.42,0.00021713,2]
[378173596,1754763045841,-533.70218838,0.00021713,2]
[378173597,1754763045851,-82924.66711268,0.00021714,2]
[378173598,1754763045861,-500.0,0.00021773,2]
[378173600,1754763045871,-236.46206706,0.00021773,2]
[378173601,1754763045881,-500.0,0.00021773,2]
[378173602,1754763045890,-552.22024188,0.00021773,2]
[378173603,1754763045900,-500.0,0.00021773,2]
[378173604,1754763045910,-500.0,0.00021773,2]
[378173605,1754763045919,-500.0,0.00021773,2]
[378173606,1754763045929,-500.0,0.00021773,2]
[378173607,1754763045939,-500.0,0.00021773,2]
[378173608,1754763045950,-500.0,0.00021773,2]
[378173609,1754763045959,-513.54100745,0.00021773,2]
[378173610,1754763045970,-211.87,0.0002181,2]
[378173611,1754763045980,-590.28,0.0002181,2]
[378173612,1754763045990,-460.0,0.0002181,2]
[378173613,1754763046000,-491.78,0.00021811,2]
[378173614,1754763046009,-460.0,0.00021811,2]
[378173615,1754763046019,-1055.33,0.00021811,2]
[378173617,1754763046029,-460.0,0.00021811,2]
[378173619,1754763046038,-460.0,0.00021811,2]
[378173620,1754763046047,-460.0,0.00021811,2]
[378173622,1754763046056,-821.13,0.00021811,2]
[378173624,1754763046066,-460.0,0.00021812,2]
[378173626,1754763046076,-1182.0,0.00021812,2]
[378173628,1754763046085,-460.0,0.00021812,2]
[378173630,1754763046094,-433.12,0.00021812,2]
[378173632,1754763046104,-881.07,0.00021812,2]
[378173634,1754763046114,-460.0,0.00021812,2]
[378173636,1754763046123,-460.0,0.00021813,2]
[378173639,1754763046136,-460.0,0.00021813,2]
[378173641,1754763046145,-460.0,0.00021813,2]
[378173643,1754763046154,-460.0,0.00021813,2]
[378173645,1754763046163,-460.0,0.00021813,2]
[378173647,1754763046172,-1640.42,0.00021813,2]
[378173648,1754763046182,-460.0,0.00021813,2]
[378173650,1754763046191,-460.0,0.00021813,2]
[378173653,1754763046201,-460.0,0.00021813,2]
[378173655,1754763046211,-460.0,0.00021813,2]
[378173657,1754763046220,-460.0,0.00021813,2]
[378173659,1754763046230,-460.0,0.00021813,2]
[378173661,1754763046239,-460.0,0.00021813,2]
[378173663,1754763046250,-460.0,0.00021813,2]
[378173665,1754763046261,-605.49200384,0.00021813,2]
[378173667,1754763046270,-362.12,0.00021813,2]
[378173669,1754763046280,-460.0,0.00021813,2]
[378173671,1754763046289,-501.46,0.00021813,2]
[378173673,1754763046299,-460.0,0.00021813,2]
[378173675,1754763046312,-585.05,0.00021813,2]
[378173677,1754763046322,-460.0,0.00021813,2]
[378173678,1754763046331,-460.0,0.00021814,2]
[378173680,1754763046341,-166.12238018,0.00021814,2]
[378173682,1754763046351,-460.0,0.00021814,2]
[378173684,1754763046360,-460.0,0.00021814,2]
[378173685,1754763046370,-460.0,0.00021814,2]
[378173686,1754763046380,-460.0,0.00021814,2]
[378173687,1754763046389,-460.0,0.00021814,2]
[378173688,1754763046399,-460.0,0.00021814,2]
[378173689,1754763046408,-460.0,0.00021814,2]
[378173690,1754763046418,-921.51,0.00021814,2]
[378173691,1754763046427,-460.0,0.00021814,2]
[378173692,1754763046437,-2422.38,0.00021814,2]
[378173693,1754763046447,-1640.42,0.00021814,2]
[378173694,1754763046456,-460.0,0.00021814,2]
[378173695,1754763046465,-745.73,0.00021814,2]
[378173696,1754763046475,-688.25,0.00021814,2]
[378173697,1754763046484,-790.22,0.00021814,2]
[378173698,1754763046493,-536.85,0.00021814,2]
[378173699,1754763046503,-751.83,0.00021814,2]
[378173700,1754763046512,-460.0,0.00021814,2]
[378173701,1754763046522,-460.0,0.00021814,2]
[378173702,1754763046531,-529.69,0.00021814,2]
[378173703,1754763046541,-460.0,0.00021815,2]
[378173704,1754763046551,-460.0,0.00021815,2]
[378173705,1754763046561,-460.0,0.00021815,2]
[378173706,1754763046576,-437.51482138,0.00021815,2]
[378173707,1754763046585,-377.01409365,0.00021815,2]
[378173708,1754763046594,-460.0,0.00021815,2]
[378173709,1754763046604,-460.0,0.00021815,2]
[378173710,1754763046614,-460.0,0.00021815,2]
[378173711,1754763046624,-262.28252579,0.00021815,2]
[378173712,1754763046633,-460.0,0.00021815,2]
[378173713,1754763046643,-357.81442668,0.00021815,2]
[378173714,1754763046653,-460.0,0.00021815,2]
[378173715,1754763046662,-460.0,0.00021815,2]
[378173716,1754763046672,-460.0,0.00021815,2]
[378173717,1754763046682,-296.99206066,0.00021815,2]
[378173718,1754763046691,-641.9,0.00021815,2]
[378173719,1754763046701,-460.0,0.00021815,2]
[378173720,1754763046710,-460.0,0.00021815,2]
[378173721,1754763046719,-460.0,0.00021815,2]
[378173722,1754763046729,-500.0,0.00021815,2]
[378173723,1754763046739,-460.0,0.00021815,2]
[378173724,1754763046748,-569.86,0.00021815,2]
[378173725,1754763046757,-1186.24,0.00021815,2]
[378173726,1754763046767,-460.0,0.00021815,2]
[378173727,1754763046776,-663.54,0.00021815,2]
[378173728,1754763046785,-460.0,0.00021815,2]
[378173729,1754763046795,-984.81,0.00021815,2]
[378173730,1754763046804,-500.0,0.00021816,2]
[378173731,1754763046814,-460.0,0.00021816,2]
[378173732,1754763046823,-641.9,0.00021816,2]
[378173733,1754763046832,-641.9,0.00021816,2]
[378173734,1754763046842,-500.0,0.00021816,2]
[378173735,1754763046851,-443.50988486,0.00021816,2]
[378173736,1754763046861,-480.16,0.00021816,2]
[378173737,1754763046871,-460.0,0.00021816,2]
[378173738,1754763046880,-482.70348187,0.00021816,2]
[378173739,1754763046890,-1186.24,0.00021816,2]
[378173740,1754763046899,-1186.24,0.00021816,2]
[378173741,1754763046909,-1640.42,0.00021817,2]
[378173742,1754763046918,-641.9,0.00021818,2]
[378173743,1754763046927,-1186.24,0.00021899,2]
[378173744,1754763046937,-1186.24,0.00021916,2]
[378173745,1754763046946,-500.0,0.00021917,2]
[378173746,1754763046955,-1871.52,0.00021917,2]
[378173747,1754763046965,-2112.37410056,0.00021919,2]
[378173748,1754763046974,-200.0,0.00021957,15]
[378173749,1754763046984,-200.0,0.00021957,15]
[378173750,1754763046993,-200.0,0.00021957,15]
[378173751,1754763047003,-200.0,0.00021957,15]
[378173752,1754763047012,-200.0,0.00021957,15]
[378173753,1754763047022,-641.9,0.00021988,2]
[378173754,1754763047031,-641.9,0.00021989,2]
[378173755,1754763047041,-641.9,0.00021989,2]
[378173756,1754763047051,-641.9,0.00021989,2]
[378173757,1754763047060,-1186.24,0.00021989,2]
[378173758,1754763047070,-1186.24,0.00021989,2]
[378173759,1754763047080,-1186.24,0.00021989,2]
[378173760,1754763047090,-151.0,0.00022,8]
[378173761,1754763047099,-500.0,0.00022041,2]
[378173762,1754763047109,-151.234569,0.00022062,14]
[378173763,1754763047119,-590.28,0.00022084,2]
[378173764,1754763047128,-491.78,0.00022085,2]
[378173765,1754763047139,-460.0,0.00022085,2]
[378173766,1754763047149,-1055.33,0.00022085,2]
[378173767,1754763047159,-460.0,0.00022085,2]
[378173768,1754763047168,-460.0,0.00022085,2]
[378173769,1754763047178,-460.0,0.00022085,2]
[378173770,1754763047187,-821.13,0.00022085,2]
[378173771,1754763047197,-1182.0,0.00022086,2]
[378173772,1754763047207,-881.07,0.00022086,2]
[378173773,1754763047216,-571.8,0.00022086,2]
[378173774,1754763047227,-460.0,0.00022087,2]
[378173775,1754763047236,-521.0,0.00022087,2]
[378173776,1754763047246,-460.0,0.00022087,2]
[378173777,1754763047257,-460.0,0.00022087,2]
[378173778,1754763047267,-157.56,0.00022087,2]
[378173779,1754763047277,-460.0,0.00022087,2]
[378173780,1754763047287,-460.0,0.00022087,2]
[378173781,1754763047297,-460.0,0.00022087,2]
[378173782,1754763047312,-460.0,0.00022087,2]
[378173783,1754763047322,-460.0,0.00022087,2]
[378173784,1754763047331,-460.0,0.00022087,2]
[378173785,1754763047341,-460.0,0.00022087,2]
[378173786,1754763047351,-585.05,0.00022087,2]
[378173787,1754763047361,-460.0,0.00022087,2]
[378173788,1754763047371,-460.0,0.00022088,2]
[378173789,1754763047382,-460.0,0.00022088,2]
[378173790,1754763047392,-460.0,0.00022088,2]
[378173791,1754763047403,-541.96,0.00022088,2]
[378173792,1754763047415,-460.0,0.00022088,2]
[378173793,1754763047425,-921.51,0.00022088,2]
[378173794,1754763047435,-300.87,0.00022088,2]
[378173795,1754763047444,-2422.38,0.00022088,2]
[378173796,1754763047489,-1640.42,0.00022088,2]
[378173797,1754763047499,-460.0,0.00022088,2]
[378173798,1754763047508,-745.73,0.00022088,2]
[378173799,1754763047518,-688.25,0.00022088,2]
[378173800,1754763047527,-790.22,0.00022088,2]
[378173801,1754763047536,-751.83,0.00022088,2]
[378173802,1754763047547,-460.0,0.00022088,2]
[378173803,1754763047556,-529.69,0.00022088,2]
[378173804,1754763047566,-460.94536757,0.00022089,2]
[378173805,1754763047575,-460.0,0.00022089,2]
[378173806,1754763047584,-580.16894444,0.00022089,2]
[378173807,1754763047594,-460.0,0.00022089,2]
[378173808,1754763047603,-460.0,0.00022089,2]
[378173809,1754763047612,-460.0,0.00022089,2]
[378173810,1754763047622,-460.0,0.00022089,2]
[378173811,1754763047633,-460.0,0.00022089,2]
[378173812,1754763047643,-1186.24,0.00022089,2]
[378173813,1754763047653,-460.0,0.00022089,2]
[378173814,1754763047663,-663.54,0.00022089,2]
[378173815,1754763047672,-984.81,0.00022089,2]
[378173816,1754763047683,-465.59453621,0.0002209,2]
[378173817,1754763047692,-641.9,0.0002209,2]
[378173818,1754763047702,-641.9,0.0002209,2]
[378173819,1754763047713,-480.16,0.0002209,2]
[378173820,1754763047723,-1186.24,0.0002209,2]
[378173821,1754763047734,-1186.24,0.0002209,2]
[378173822,1754763047743,-1186.24,0.0002209,2]
[378173823,1754763047753,-1186.24,0.0002209,2]
[378173824,1754763047762,-1186.24360481,0.0002209,2]
[378173825,1754763047771,-548.49,0.00022204,2]
[378173826,1754763047780,-311.66817828,0.00022321,2]
[378173827,1754763047789,-1000.0,0.00022321,2]
[378173828,1754763047798,-295.12300112,0.00022321,2]
[378173829,1754763047807,-590.28,0.00022358,2]
[378173830,1754763047817,-491.78,0.00022359,2]
[378173831,1754763047826,-460.0,0.00022359,2]
[378173832,1754763047836,-1055.33,0.00022359,2]
[378173833,1754763047846,-460.0,0.00022359,2]